Cogmind - Beta 14 @@@ ROGUE MODE // 2024.09.18 @ 20:48:52 Player: Dull Result: Destroyed by 6V-S4V(R) with Subdweller Laser Performance ------------- Evolutions (0) 0 Regions Visited (2) 400 Robots Destroyed (38) 190 Value Destroyed (723) 723 Prototype IDs (0) 0 Alien Tech Used (0) 0 Bonus (0) 0 TOTAL SCORE: 1313 Bonus ------- None Cogmind --------- Core Integrity 0/250 Matter 196/300 Energy 100/100 System Corruption 0% Temperature Cool (6) Movement Core (1350) Ox26 Location -10/Subcaves Parts ------- > --- POWER (1) -------- (None) > --- PROPULSION (2) --- (None) > --- UTILITY (2) ------ Huge Storage Unit Seismic Detector > --- WEAPON (2) ------- (None) > --- INVENTORY (25) --- Ion Engine Ion Engine Light Treads Light Treads Improved Treads Improved Treads Wheel Improved Heat Sink Large Storage Unit High-capacity Storage Unit Medium Matter Pod (0) ECM Suite Hacking Suite Tractor Beam Small Laser Improved Light Cannon Grenade Launcher Mining Laser Mace Peak State ------------ > --- POWER ------------ Light Ion Engine > --- PROPULSION ------- Improved Treads Improved Treads > --- UTILITY ---------- Huge Storage Unit Seismic Detector > --- WEAPON ----------- Improved Light Cannon Improved Light Cannon > --- INVENTORY -------- Ion Engine Ion Engine Light Treads Light Treads Improved Treads Improved Treads Wheel Improved Heat Sink Large Storage Unit High-capacity Storage Unit Medium Matter Pod ECM Suite Hacking Suite Tractor Beam Small Laser Improved Light Cannon Improved Light Cannon Grenade Launcher Grenade Launcher Mining Laser Mace [Rating: 14] Favorites ----------- Power Light Ion Engine Engine Light Ion Engine Propulsion Light Treads Treads Light Treads Leg Aluminum Leg Utility Seismic Detector Device Seismic Detector Storage Large Storage Unit Weapon Light Assault Rifle Ballistic Gun Light Assault Rifle Ballistic Cannon Light Cannon Launcher Grenade Launcher Build | -11 -10 -10 ------- Run | Yrd Mat Sub Slots Evolved . | . . . Power . | . . . Propulsion . | . . . Utility . | . . . Weapon . | . . . Parts Attached 21 | 3 16 2 Power 1 | . 1 . Engine 1 | . 1 . Core . | . . . Reactor . | . . . Propulsion 4 | 2 2 . Treads 4 | 2 2 . Leg . | . . . Wheel . | . . . Hover . | . . . Flight . | . . . Utility 7 | 1 6 . Device 3 | 1 2 . Storage 4 | . 4 . Processor . | . . . Hackware . | . . . Protection . | . . . Artifact . | . . . Weapon 9 | . 7 2 Energy Gun . | . . . Energy Cannon . | . . . Ballistic Gun 1 | . 1 . Ballistic Cannon 5 | . 4 1 Launcher 3 | . 2 1 Special Weapon . | . . . Impact Weapon . | . . . Slashing Weapon . | . . . Piercing Weapon . | . . . Special Melee Weapon . | . . . Unidentified Prototypes . | . . . Parts Lost 9 | . 2 7 Power 2 | . 1 1 Propulsion 2 | . . 2 Utility 1 | . 1 . Weapon 4 | . . 4 Highest Loss Streak 3 | . 1 3 To Critical Strikes . | . . . Average Slot Usage (%) 92 | . 99 64 Engine 11 | . 13 3 Treads 25 | . 28 14 Device 14 | . 14 14 Storage 14 | . 14 14 Ballistic Gun 9 | . 11 . Ballistic Cannon 16 | . 16 16 Peak Build Rating 14 | 7 14 14 Average Rating 8 | 6 9 8 On Entrance 9 | 6 7 14 Naked Turns . | . . . Heaviest Build 92 | 11 92 92 Greatest Support 46 | 40 46 46 Greatest Overweight (x) 26 | . 2 26 Average Overweight (x) . | . . 3 Largest Inventory Capacity 25 | 8 25 25 Average Capacity 17 | 8 16 25 Most Carried 21 | 6 21 21 Average Carried 12 | 5 11 19 Final Capacity 25 | 8 25 25 Final Carried 21 | 3 21 19 Class Distribution -------------------- 100% | Mutant Dominant Class ---------------- Mutant | -10/Materials Mutant | -10/Subcaves Resources | -11 -10 -10 ----------- Run | Yrd Mat Sub Matter Collected 930 | 274 438 218 Remotely . | . . . Salvage Created 735 | 146 481 108 Parts 52 | 10 32 10 Haulers Intercepted 1 | . 1 . Recyclers Shooed 1 | . 1 . Parts Field Recycled . | . . . Retrieved Matter . | . . . Parts Self-Destructed 5 | . . 5 Prevented . | . . . Kills | -11 -10 -10 ------- Run | Yrd Mat Sub Combat Hostiles Destroyed 25 | . 16 9 Guns 4 | . 4 . Cannons 15 | . 9 6 AOE 6 | . 3 3 Classes Destroyed 9 | 2 6 1 Worker 2 | . 2 . Tunneler 4 | 4 . . Hauler 1 | . 1 . Recycler 2 | 1 1 . Operator 1 | . 1 . Watcher 3 | . 3 . Swarmer 12 | . 9 3 Grunt 8 | . 7 1 Subdweller 5 | . . 5 Best Kill Streak 6 | 2 4 6 Combat Bots Only 6 | . 3 6 Max Kills in Single Turn 3 | 1 1 3 Gunslinging . | . . . Exploded 3 | . 1 3 Melee . | . . . Uniques/NPCs Destroyed . | . . . Combat | -11 -10 -10 -------- Run | Yrd Mat Sub Hostile Shots Fired 152 | . 75 77 Missed 44 | . 24 20 Damage Taken 1521 | . 444 1077 Core 255 | . 32 223 Absorbed by Shields . | . . . Regen/Repaired (Parts) 401 | . 401 . Core Remaining (%) 100 | 100 . . Volleys Fired 129 | 22 77 30 Largest 2 | 2 2 2 Hottest 78 | 40 78 78 Shots Fired 230 | 44 138 48 Gun 104 | 44 60 . Cannon 115 | . 69 46 Launcher 11 | . 9 2 Special . | . . . Kinetic 219 | 44 129 46 Thermal . | . . . Explosive 11 | . 9 2 Electromagnetic . | . . . Robot Hit Streak 18 | 9 18 9 Robot Miss Streak 6 | 3 6 2 Penetration Max . | . . . Secondary Targets . | . . . Shots Hit Robots 136 | 29 72 35 Core Hits 64 | 11 38 15 Critical Kills . | . . . Critical Parts Destroyed . | . . . Critical Strikes 4 | . 3 1 Blast 4 | . 3 1 Melee Attacks . | . . . Impact . | . . . Slashing . | . . . Piercing . | . . . Sneak Attacks . | . . . Combat Hostiles . | . . . Follow-up Attacks . | . . . Damage Inflicted 2323 | 220 1188 915 Guns 529 | 220 309 . Cannons 1374 | . 678 696 Explosions 396 | . 177 219 Melee . | . . . Ramming 24 | . 24 . Kinetic 1903 | 220 987 696 Thermal . | . . . Explosive 396 | . 177 219 Electromagnetic . | . . . Impact . | . . . Slashing . | . . . Piercing . | . . . Highest Corruption . | . . . Average Corruption . | . . . Corruption Purged . | . . . Corruption Blocked . | . . . Overload Shots . | . . . Overflow Damage 25 | . 22 3 Projectiles 22 | . 22 . Explosions 3 | . . 3 Melee . | . . . Knockbacks 16 | . 10 6 Impact . | . . . Kinetic 15 | . 9 6 Secondary 1 | . 1 . Self-Inflicted Damage 34 | . . 34 Shots 2 | . . 2 Rammed 4 | . 4 . Targets Rammed 4 | . 4 . Kicked . | . . . Crushed . | . . . Highest Temperature 72 | . 72 . Average Temperature 15 | . 15 . Received Heat Transfer 162 | . 72 90 Siege Activations . | . . . Robots Corrupted 1 | . 1 . Combat Hostiles . | . . . Parts Fried 1 | . 1 . Impact Corruptions 1 | . 1 . Robots Melted . | . . . Combat Hostiles . | . . . Parts Melted 2 | . . 2 Heat Transferred . | . . . Parts Sabotaged . | . . . Parts Stolen . | . . . Parts Stripped . | . . . Power Chain Reactions . | . . . Alert | -11 -10 -10 ------- Run | Yrd Mat Sub Peak Influence 323 | 25 323 . Initial 16 | . 16 . Average 159 | 14 169 . Maximum Alert Level 1 | . 1 . Low Security (%) 66 | 100 64 . Level 1 33 | . 35 . Level 2 . | . . . Level 3 . | . . . Level 4 . | . . . Level 5 . | . . . High Security . | . . . Max Security . | . . . Squads Dispatched 3 | . 3 . Investigation 1 | . 1 . Extermination . | . . . Reinforcement 2 | . 2 . Assault . | . . . Garrison . | . . . Intercept . | . . . Searches Triggered . | . . . Construction Impeded . | . . . Haulers Reinforced . | . . . Active Scanning Responses . | . . . Cargo Convoy Interrupts . | . . . Stealth | -11 -10 -10 --------- Run | Yrd Mat Sub Distress Signals 2 | . 2 . Communications Jammed . | . . . Distress Signals . | . . . Times Spotted 41 | . 30 11 Peak Tracking Total 5 | . 5 5 Tactical Retreats 3 | . 3 . Traps | -11 -10 -10 ------- Run | Yrd Mat Sub Traps Triggered 2 | . 2 . Indirectly . | . . . Trap Hack Attempts . | . . . Triggered . | . . . Disarmed 1 | . 1 . Reprogrammed . | . . . Reused . | . . . Traps Extracted . | . . . Installed . | . . . Triggered . | . . . Machines | -11 -10 -10 ---------- Run | Yrd Mat Sub Machines Disabled 1 | . 1 . Max in Single Turn 1 | . 1 . Machines Repaired . | . . . Machines Dismantled . | . . . Machines Sabotaged . | . . . Overloaded Fab Kills . | . . . Hacking | -11 -10 -10 --------- Run | Yrd Mat Sub Machines Accessed 7 | . 7 . Terminals 5 | . 5 . Fabricators . | . . . Repair Stations 1 | . 1 . Recycling Units 1 | . 1 . Scanalyzers . | . . . Garrison Access . | . . . Total Hacks 22 | . 22 . Successful 14 | . 14 . Failed 8 | . 8 . Catastrophic . | . . . Database Lockouts . | . . . Manual 16 | . 16 . Terminals 13 | . 13 . Fabricators . | . . . Repair Stations 4 | . 4 . Recycling Units 5 | . 5 . Scanalyzers . | . . . Garrison Access . | . . . Terminal Hacks 3 | . 3 . Robot Analysis 2 | . 2 . Disarm Traps 1 | . 1 . Fabricator Hacks . | . . . Repair Station Hacks 4 | . 4 . Scan Component 2 | . 2 . Repair 2 | . 2 . Recycling Unit Hacks . | . . . Scanalyzer . | . . . Garrison Access Hacks . | . . . Unauthorized Hacks 7 | . 7 . Terminals 5 | . 5 . Botnet 5 | . 5 . Fabricators . | . . . Repair Stations . | . . . Recycling Units 2 | . 2 . Reject 1 | . 1 . Mask 1 | . 1 . Scanalyzers . | . . . Garrison Access . | . . . Data Cores Recovered . | . . . Used . | . . . Hacking Detections 5 | . 5 . Full Trace Events 1 | . 1 . Feedback Events . | . . . Feedback Blocked . | . . . Robot Schematics Acquired . | . . . Robots Built . | . . . Authchips . | . . . Time . | . . . Total Robot Build Rating . | . . . Part Schematics Acquired . | . . . Parts Built . | . . . Authchips . | . . . Time . | . . . Total Part Build Rating . | . . . Parts Repaired 2 | . 2 . Time 52 | . 52 . Parts Recycled . | . . . Recycled Matter . | . . . Retrieved Matter . | . . . Retrieved Components . | . . . Parts Scanalyzed . | . . . Part Schematics Acquired . | . . . Parts Damaged . | . . . Bothacking | -11 -10 -10 ------------ Run | Yrd Mat Sub Used RIF Installer . | . . . Robots Hacked . | . . . Non-combat . | . . . Combat . | . . . Robot Hacks Applied . | . . . Relay Couplers Released . | . . . Fabnet Peak Effective % . | . . . Robots Rewired . | . . . Allies Hacked . | . . . Hacks Repelled . | . . . Allies | -11 -10 -10 -------- Run | Yrd Mat Sub Total Allies . | . . . Largest Group . | . . . Highest-Rated Group . | . . . Highest-Rated Ally . | . . . Total Orders . | . . . Ally Attacks . | . . . Total Damage . | . . . Kills . | . . . Allies Corrupted . | . . . Allies Melted . | . . . Intel | -11 -10 -10 ------- Run | Yrd Mat Sub Robot Analysis Total 2 | . 2 . Derelict Logs Recovered 1 | . . 1 Drone Launches . | . . . Drone Recoveries . | . . . Exploration | -11 -10 -10 ------------- Run | Yrd Mat Sub Turns Passed 2729 | 143 2071 515 Spaces Moved 1051 | 60 883 108 Core 1 | . . 1 Treads 995 | 5 883 107 Legs 55 | 55 . . Wheels . | . . . Hover . | . . . Flight . | . . . Fastest Speed 120 | 120 160 240 Average Speed 199 | 123 179 404 Slowest Speed 1350 | 160 320 1350 Overloaded Moves . | . . . Propulsion Burnouts . | . . . Robots Hopped . | . . . Cave-ins Triggered . | . . . Exploration Rate (%) 38 | 4 99 11 Regions Visited 2 Branch Regions 1 Pre-discovered Areas . | . . . Known Exits Taken . | . . . Unknown Exits Taken 2 | 1 1 . Scrap Searched . | . . . Spaces Dug 9 | . 9 . Terrain Destroyed 68 | . 51 17 Melee . | . . . Projectile 2 | . . 2 AOE 66 | . 51 15 Terrain Rammed . | . . . Walls Destroyed . | . . . Machines Disabled . | . . . Actions | -11 -10 -10 --------- Run | Yrd Mat Sub Total 1475 | 95 1240 140 Wait 238 | 6 232 . Move 1049 | 59 882 108 Hop . | . . . Pick Up 22 | 1 21 . Fast Attach 3 | 1 2 . Attach 5 | 2 1 2 Detach 1 | . 1 . Swap 13 | . 13 . Drop 11 | 4 7 . Fire 129 | 22 77 30 Melee . | . . . Ram . | . . . Kick . | . . . Crush 4 | . 4 . Escape Stasis . | . . . Rewire . | . . . Trap . | . . . Miscellaneous . | . . . Route ------- -11/Scrapyard -10/Materials (discovered 6 exits: [*Mat x3] / [*Min x2] / [*Sub]) -10/Subcaves History --------- Turn | Location | Event 1 | -11/Scrapyard | Discovered new exit (range 1) 144 | -11/Scrapyard | Entered Materials 328 | -10/Materials | Build established: Mutant 666 | -10/Materials | Discovered new exit (range 16) 1109 | -10/Materials | Discovered new exit (range 12) 1487 | -10/Materials | Discovered new exit (range 10) 1602 | -10/Materials | Discovered new exit (range 10) 1754 | -10/Materials | Discovered new exit (range 14) 2093 | -10/Materials | Repaired Lgt. Treads 2121 | -10/Materials | Repaired Huge Storage Unit 2205 | -10/Materials | Discovered new exit (range 4) 2215 | -10/Materials | Entered Subcaves 2251 | -10/Subcaves | Ambushed by angry Subdweller bent on revenge 2256 | -10/Subcaves | Ambushed by Subdweller buried in earth 2272 | -10/Subcaves | Core integrity fell below 50% 2291 | -10/Subcaves | Lost 3 parts (1n2w) 2293 | -10/Subcaves | Learned Materials emergency access door positions 2575 | -10/Subcaves | Core integrity fell below 20% 2714 | -10/Subcaves | Disturbed a concealed Subdweller 2730 | -10/Subcaves | Destroyed by 6V-S4V(R) with Subdweller Laser Last Messages --------------- 02389_ Subatomizers dissect the Disposable Heat Sink, destroying it. 02395_ The unstable cave ceiling collapses. 02399_ G-34 Mercenary destroyed. 02404_ Ion Engine fries itself beyond repair. 02421_ Acquired 13 matter. 02425_ Acquired 10 matter. 02433_ Acquired 4 matter. 02437_ Acquired 1 matter. 02457_ Acquired 7 matter. 02469_ Acquired 11 matter. 02541_ Acquired 53 matter. 02577_ LK-R91(R) knocked back. 02585_ LK-R91(R) destroyed. 02588_ Subatomizers dissect the Sub. Power Source. 02611_ Acquired 19 matter. 02615_ Acquired 3 matter. 02619_ Acquired 1 matter. 02627_ Subatomizers dissect the Sub. Power Source. 02716_ Imp. Light Cannon destroyed. 02718_ Imp. Treads destroyed. Map ----- +----------------------------------------------------+ | ??????????????????????????????????????????? | | ??????????????????????????????????????????? | | ??????????????????????????????????????????? | | ??????????????????????????????????????????? | | ??????????????????????????????????????????? | | ??????????????????????????????????????????? | | ??????????????????????????????????????????? | | ??????????????????????????????????????????? | | ??????????????????????????????????????????? | | ??????????????????????????????????????????? | | ??????????????????????????????????????????? | | ?????????????????? #?????????????????????? | | ?????????????????? ?????????????????????? | | ?????????????????? ?????????????????????? | | ?????????????????? #????????????????????? | | ??????????????????# #????????????????????? | | ??????????????????# ????????????????????? | | ?????????????????## ????????????????????? | | ?????????????????? #????????????????????? | | ?????????????????? ##???####????????????? | | ??????????????????# #??## ###??????????? | | ??????????????????# #### ##?????????? | | ??????????????????# #?????????? | | ???????????##???### #?????????? | | ???????????#< ##< #?????????? | | ?????????????# R @ #?# #?????????? | | ?????????????##<# ### ####??????? | | ???????????????## #??????? | | ???????????????# #??????? | | ???????????????# ##????#?? | | ???????????????######### ##???? ### | | ???????????????????????## ####?? " # | | ???????????????????????## ## #?? ""? | | ??????????????????????## #?# #?? | | ??????????????????????# ## #?? | | ??????????????????????# #### ##? | | ??????????????????????##???## ## | | ????????????????????????????# # | | ????????????????????????????# ## # | | ????????????????????????????##### # ## | | ????????????????????????????????# | | ????????????????????????????????# " " | | ????????????????????????????????## # "# | | ???????????????????????????????#### ###?## | | ?????????????????????????????###% # #????? | | ?????????????????????????????# & #????? | | ???????????????????????????#### *# #????? | | ?????????????????????????### #### %#???? | | ???????????????## ???????# #??# ?#? | | ???????????????# ??????## # # #??## "# #? | +----------------------------------------------------+ Best States ------------- Heat Dissipation 39 Energy Generation 10 Energy Capacity 125 Matter Stores 300 Matter Capacity 300 Sight Range 16 Terrain Scan Density 10 Evasion (%) 55 Recoil Reduction 2 Item Schematics ----------------- None Robot Schematics ------------------ None Fabricated ------------ Nothing Alien Tech Used ----------------- None Achievements -------------- None Challenges ------------ None Game ------ Seed TowerHardenedCycler Manual? 0 Play Time 00:15:59 Cumulative 113.9 hours Start 2024.09.18 @ 20:34:54 End 2024.09.18 @ 20:48:52 Sessions 1 Manual Loads 0 Difficulty Rogue Special Mode None Game No. 167 Rogue 167 Adventurer 0 Explorer 0 Win Type - Total 1 Types 1/0/0/0/0/0/0/0/0 Lore% 26 Gallery% 57 Achievement% 45 Wizard Run 0 Options --------- Layout 0 ASCII 0 Keyboard 0 Movement Mouse Keybinds 1 Fullscreen 1 Font 18/TerminusBold Map View 76x50 Zoom Use 0% Tactical HUD 1 Map Filters NONE Filters NONE Steam 1 RUN: e5168a96-bec5-4b9a-bcec-a7f2683c36ee